[Event "American Cup Women Champions 2023"]
[Site "Saint Louis"]
[Date "2023.03.24"]
[Round "4.1"]
[White "Krush, Irina"]
[Black "Lee, Alice"]
[Result "1-0"]
[ECO "A22"]
[WhiteElo "2432"]
[BlackElo "2362"]
[Annotator "TA"]
[PlyCount "95"]
[EventDate "2023.03.15"]
[EventCountry "USA"]
[SourceTitle "playchess.com"]
[Source "ChessBase"]
[SourceQuality "1"]
[TimeControl "40/5400+30:1800+30"]

{[%evp 9,95,56,63,60,78,70,74,79,85,76,93,25,27,39,60,62,56,55,90,91,89,91,87,86,81,77,97,77,84,51,74,54,133,105,176,111,107,119,231,247,234,227,257,241,250,270,376,364,364,324,412,193,206,177,172,157,652,631,852,605,613,603,601,613,598,612,604,587,587,583,587,587,566,558,672,672,649,641,681,631,789,760,745,706,915,897,844,820]} 1. c4 {[%emt 0:00:03]} e5 {[%emt 0:00:05]} 2. Nc3 {[%emt 0:00:40][%cal Bb1c3,Bc3e4,Be4g3,Bg3e2][%mdl 32]} Nf6 {[%emt 0:00:05]} 3. Nf3 {[%emt 0:02:55]} e4 {[%emt 0:00:06]} 4. Ng5 {[%emt 0:04:34]} c6 {[%emt 0:00:17]} 5. Ngxe4 {[%emt 0:02:02]} Nxe4 {[%emt 0:00:07]} 6. Nxe4 {[%emt 0:00:07] A22: English Opening: 1...e5 2 Nc3 Nf6.} d5 {[%emt 0:00:04]} 7. cxd5 {[%emt 0:05:24]} cxd5 {[%emt 0:00:07]} 8. Ng3 {[%emt 0:00:06] White is better.} (8. Qa4+ $2 Bd7 9. Qd4 dxe4 10. Qxe4+ Be7 $19) 8... h5 {[%emt 0:00:08]} 9. e3 {[%emt 0:00:57]} h4 {[%emt 0:00:15]} 10. Bb5+ {[%emt 0:06:19]} (10. Ne2 $1 $16) 10... Nc6 $11 {[%emt 0:09:26]} 11. Ne2 {[%emt 0:00:25] [#]} Bd6 $146 {[%emt 0:12:47]} ({Predecessor:} 11... h3 12. g3 a6 13. Bxc6+ bxc6 14. Qa4 Qf6 15. Qf4 Qe6 16. Nd4 Qg6 17. Qe5+ Be7 {½-½ Nyzhnyk,I (2674)-Sevian,S (2684) Saint Louis Spring-A 2022 (1)}) 12. O-O {[%emt 0:03:54]} Qf6 {[%emt 0:05:09]} 13. f3 {[%emt 0:06:03][%cal Bf2f3,Bf3f4][%mdl 32]} Bd7 {[%emt 0:06:20]} 14. d4 {[%emt 0:05:21]} O-O-O {[%emt 0:16:16]} 15. Bd2 {[%emt 0:06:11]} Bc7 {[%emt 0:03:53]} 16. Bd3 {[%emt 0:06:57]} Qd6 {[%emt 0:04:37]} 17. f4 $1 {[%emt 0:00:10]} g5 {[%emt 0:08:34]} 18. Qb3 {[%emt 0:07:16]} (18. fxg5 $2 Qxh2+ 19. Kf2 h3 $19) 18... Rhg8 {[%emt 0:06:22]} 19. Kh1 {[%emt 0:01:42]} g4 {[%emt 0:04:43]} 20. Rfc1 {[%emt 0:02:35] White is more active.} Qf6 {[%emt 0:04:06]} (20... Kb8 $14) 21. Qxd5 {[%emt 0:05:54]} g3 {[%emt 0:02:27]} (21... Kb8 $16 22. Qb3 h3) 22. Qf3 {[%emt 0:02:44]} (22. Be4 $1 $18) 22... Bg4 $16 {[%emt 0:01:38] [#]} 23. Qf1 {[%emt 0:00:14]} Bxe2 {[%emt 0:00:49]} (23... Kb8 $16 24. Rc2 (24. hxg3 $2 Bxe2 {[%mdl 64] Remove Defender} 25. Qxe2 hxg3 $19) 24... Qe7) 24. Bxe2 $18 {[%emt 0:08:56][%cal Bd3e2,Be2f3,Bf3g2][%mdl 32]} h3 {[%emt 0:00:23]} 25. Bf3 {[%emt 0:00:14]} (25. gxh3 $2 g2+ $19) 25... hxg2+ {[%emt 0:01:10]} 26. Bxg2 {[%emt 0:00:28]} (26. Qxg2 $6 gxh2 27. Qf2 (27. Qxh2 $2 Rh8 $19) 27... Kb8 $18) 26... gxh2 {[%emt 0:00:53]} 27. Qf3 {[%emt 0:03:31]} Rg6 {[%emt 0:02:40] ...Rdg8 is the strong threat.} 28. Rc2 {[%emt 0:02:01] d5 would be deadly.} (28. Kxh2 $2 Rh8+ 29. Bh3+ Kb8 $19) 28... Rdg8 {[%emt 0:05:45]} 29. Be1 {[%emt 0:00:08]} Kb8 {[%emt 0:00:29]} 30. Rac1 {[%emt 0:01:42]} (30. Kxh2 $2 Qf5 31. Rac1 Rh6+ 32. Kg1 Rh3 $19) (30. d5 $142) 30... Qf5 {[%emt 0:01:46]} 31. b4 {[%emt 0:09:26][%cal Bb2b4,Bb4b5,Bb5c6,Bc6c7][%mdl 32]} (31. Kxh2 $2 Rh6+ 32. Kg1 Rh3 $19) 31... Bd6 {[%emt 0:03:22]} 32. a4 {[%emt 0:01:44] Black must now prevent b5.} (32. Kxh2 $2 Rh6+ 33. Kg1 Rh3 $19) 32... f6 $2 {[%emt 0:00:34] Black cannot hold the game after this.} (32... Qg4 $16) 33. b5 {[%emt 0:01:21] White is clearly winning.} (33. Kxh2 $2 {loses.} Rh6+ 34. Kg1 Rh3 $19) 33... Ba3 {[%emt 0:00:34]} 34. bxc6 {[%emt 0:00:35] c7+ would kill now.} Rxg2 {[%emt 0:00:12]} 35. Rxg2 {[%emt 0:02:04]} Rxg2 {[%emt 0:00:06]} 36. c7+ {[%emt 0:02:28]} Kc8 {[%emt 0:00:04]} 37. Qxg2 {[%emt 0:00:33] White wants to mate with Qg8+.} Bxc1 {[%emt 0:00:08][%mdl 4096] Endgame KQB-KQB} 38. Qg8+ {[%emt 0:00:27]} (38. Kxh2 Bxe3 39. Qg8+ Kxc7 $15) 38... Kxc7 {[%emt 0:00:04]} 39. Qc4+ {[%emt 0:00:07]} ({Stronger than} 39. Kxh2 Bxe3 40. Qf7+ Qd7 41. Qc4+ Kb8 $15) 39... Kd7 {[%emt 0:00:24]} 40. Qxc1 {[%emt 0:00:30]} Qh3 {[%emt 0:00:26]} 41. Bd2 {[%emt 0:30:24]} Qf3+ {[%emt 0:31:32]} 42. Kxh2 {[%emt 0:00:06]} Qf2+ {[%emt 0:00:03]} 43. Kh1 {[%emt 0:00:28]} Qf3+ {[%emt 0:00:08]} 44. Kg1 {[%emt 0:00:12]} Qg3+ {[%emt 0:00:09] [#]} 45. Kf1 $1 {[%emt 0:00:09]} Qf3+ {[%emt 0:00:06]} 46. Ke1 {[%emt 0:00:05]} f5 {[%emt 0:00:40]} 47. Qc4 {[%emt 0:01:14]} Qg3+ {[%emt 0:00:20]} 48. Kd1 {[%emt 0:00:37] Excellently played by Krush!   Weighted Error Value: White=0.33/Black=0.36} 1-0

[Event "American Cup Women Champions 2023"]
[Site "Saint Louis"]
[Date "2023.03.25"]
[Round "4.1"]
[White "Lee, Alice"]
[Black "Krush, Irina"]
[Result "0-1"]
[ECO "E11"]
[WhiteElo "2362"]
[BlackElo "2432"]
[Annotator "TA"]
[PlyCount "144"]
[EventDate "2023.03.15"]
[EventCountry "USA"]
[TimeControl "600+5"]

{[%evp 12,144,14,15,28,23,25,19,36,16,11,17,23,17,33,20,29,12,11,0,0,0,46,48,33,45,67,64,64,64,64,47,47,20,30,15,30,37,109,-46,-33,-41,-36,-45,-25,-64,-64,-122,-1,-1,-1,-1,-1,-1,-3,-8,-10,-64,-55,-48,-45,-64,-64,-64,-8,-8,-8,-8,-13,-171,-25,-25,-6,-6,-6,-6,-6,-7,-2,-2,-2,-6,-6,-6,0,-8,0,-64,-64,-64,-64,-64,-64,-64,-64,-64,-37,-98,-98,-98,-14,-41,-28,-95,-95,-95,-95,-108,-108,-108,-85,-108,-108,-133,-108,-29962,-29964,-29964,-29965,-29964,-29965,-29971,-29973,-29973,-29964,-29979,-29979,-29978,-29979,-29979,-29980,-29982,-29981,-29984,-29985]} 1. d4 {[%emt 0:00:01]} Nf6 {[%emt 0:00:01]} 2. c4 {[%emt 0:00:01]} e6 {[%emt 0:00:03]} 3. Nf3 {[%emt 0:00:02]} Bb4+ {[%emt 0:00:01]} 4. Bd2 {[%emt 0:00:01]} Bxd2+ {[%emt 0:00:02]} 5. Qxd2 {[%emt 0:00:02]} d5 {[%emt 0:00:02]} 6. Nc3 {[%emt 0:00:01]} O-O {[%emt 0:00:08]} 7. e3 {[%emt 0:00:02]} a6 {[%emt 0:00:05] E11: Bogo-Indian.} 8. cxd5 {[%emt 0:00:03]} exd5 {[%emt 0:00:02]} 9. Bd3 {[%emt 0:00:02]} Nc6 {[%emt 0:00:02] [#] The position is equal.} 10. Rc1 $146 {[%emt 0:00:15]} ({Predecessor:} 10. h3 Re8 11. O-O-O Ne4 12. Bxe4 dxe4 13. Ne5 f6 14. Nxc6 bxc6 15. g4 Be6 16. Rdg1 {1-0 Vaglio Mattey,E (2142)-Vaglio Munoz,J (2230) San Jose op 2013 (9)}) 10... Re8 {[%emt 0:00:12]} 11. O-O {[%emt 0:00:21]} Bg4 {[%emt 0:00:25]} 12. Ne1 {[%emt 0:00:17]} Qd6 {[%emt 0:01:04]} 13. f3 {[%emt 0:00:13]} Bh5 {[%emt 0:00:57]} 14. f4 {[%emt 0:00:46]} Ng4 {[%emt 0:01:47]} 15. Nc2 {[%emt 0:00:18] Hoping for h3.} Bg6 {[%emt 0:00:26]} 16. Be2 {[%emt 0:01:02][%cal Bd3e2,Be2g4,Bg4d1,Bd1b3][%mdl 32]} Bxc2 {[%emt 0:00:31]} (16... Bf5 $11) 17. Bxg4 $14 {[%emt 0:00:02]} Be4 {[%emt 0:00:03]} 18. f5 {[%emt 0:00:37]} f6 {[%emt 0:00:14]} 19. Rf4 {[%emt 0:00:38]} Re7 {[%emt 0:00:33]} 20. Nxe4 {[%emt 0:00:22]} dxe4 {[%emt 0:00:02]} 21. Bd1 {[%emt 0:00:24]} Nb4 {[%emt 0:00:19][%cal Bc6b4,Bb4d3,Bd3c5][%mdl 32]} 22. Bb3+ {[%emt 0:00:02]} Kh8 $1 {[%emt 0:00:07]} 23. Rh4 {[%emt 0:00:20]} (23. Rcf1 {simplifies} Nd5 24. Bxd5 Qxd5 25. Qb4) 23... Nd3 {[%emt 0:00:34]} 24. Rf1 {[%emt 0:00:56]} c5 {[%emt 0:00:06]} (24... h6 $14) 25. dxc5 $2 {[%emt 0:00:38]} ({Better is} 25. Be6 $16) 25... Qxc5 $15 {[%emt 0:00:06]} 26. Qe2 {[%emt 0:00:07][%cal Oh4h7] White wants to mate with Rxh7+! White is weak on the dark squares} h6 {[%emt 0:00:08]} 27. Be6 {[%emt 0:00:20]} Qe5 {[%emt 0:00:15]} 28. b3 {[%emt 0:00:20][%cal Bb2b3,Bb3b4][%mdl 32]} Nc5 {[%emt 0:00:11] Black is more active.} 29. Qc2 {[%emt 0:00:46]} (29. Qc4 $1 $15) 29... Rd8 {[%emt 0:01:28]} (29... Rae8 $17 30. Qc4 b5) 30. b4 $1 $11 {[%emt 0:00:29]} Nxe6 {[%emt 0:00:50]} 31. Rxe4 $1 {[%emt 0:00:03] [#]} Qd6 {[%emt 0:00:20]} 32. fxe6 {[%emt 0:00:16]} Rxe6 {[%emt 0:00:02]} 33. Rd4 {[%emt 0:00:02]} Qe7 {[%emt 0:00:05]} 34. Qc5 {[%emt 0:01:03]} (34. Rxd8+ $11 Qxd8 35. Re1) 34... Red6 {[%emt 0:00:50]} (34... Rxe3 $2 35. Rxd8+ Qxd8 36. Qxe3 $18) 35. Rxd6 {[%emt 0:00:37]} Qxd6 {[%emt 0:00:01]} 36. Qxd6 {[%emt 0:00:06]} Rxd6 $15 {[%emt 0:00:01][%mdl 4096] Endgame KR-KR} 37. Rc1 {[%emt 0:00:06]} Rd2 {[%emt 0:00:24]} (37... Rd3 $1 $15 38. e4 Kh7) 38. a4 $11 {[%emt 0:00:20]} Rb2 {[%emt 0:00:01]} 39. Rc4 {[%emt 0:00:05]} b5 {[%emt 0:00:24]} 40. Rc8+ {[%emt 0:00:24]} Kh7 {[%emt 0:00:01]} 41. a5 {[%emt 0:00:01]} ({Much worse is} 41. axb5 axb5 42. Rb8 Rxb4 $17) 41... Rxb4 {[%emt 0:00:07] aiming for ...Ra4.} 42. Rc6 {[%emt 0:00:01]} Ra4 {[%emt 0:00:17]} 43. Rxa6 {[%emt 0:00:03]} Ra2 {[%emt 0:00:12]} 44. Ra8 {[%emt 0:00:08]} Kg6 {[%emt 0:00:08]} 45. a6 {[%emt 0:00:22]} h5 {[%emt 0:00:01]} 46. Rb8 {[%emt 0:00:05]} Rxa6 {[%emt 0:00:07] And now ...Ra1+ would win.} 47. Rxb5 {[%emt 0:00:02]} Ra2 {[%emt 0:00:05]} 48. Kf1 {[%emt 0:00:03]} Rc2 {[%emt 0:00:06]} 49. e4 {[%emt 0:00:04]} (49. h4 $11) 49... Rc4 $1 $15 {[%emt 0:00:04]} 50. e5 {[%emt 0:00:06]} Rf4+ {[%emt 0:00:01]} 51. Kg1 {[%emt 0:00:01]} Rf5 {[%emt 0:00:02]} 52. Rb6 {[%emt 0:00:10]} Rxe5 {[%emt 0:00:04]} 53. Rb7 {[%emt 0:00:02]} h4 {[%emt 0:00:03]} 54. Kf2 {[%emt 0:00:06]} (54. Rb4 $1 $15) 54... Rf5+ {[%emt 0:00:07]} 55. Ke3 {[%emt 0:00:05] [#]} h3 {[%emt 0:00:06]} 56. gxh3 {[%emt 0:00:30]} (56. g4 $5 {[%cal Rg4f5]} Rf1 57. Rb5 $15) 56... Rh5 {[%emt 0:00:01]} 57. Kf3 {[%emt 0:00:04]} (57. Kf2 $1 $11) 57... Rxh3+ $17 {[%emt 0:00:02] White is on the road to losing.} 58. Kg2 {[%emt 0:00:01]} Rc3 {[%emt 0:00:05]} 59. Kf2 {[%emt 0:00:06]} Kh6 {[%emt 0:00:10]} 60. Rf7 {[%emt 0:00:01]} Rc5 {[%emt 0:00:07]} 61. Kg3 {[%emt 0:00:07]} f5 {[%emt 0:00:06]} 62. Kf4 {[%emt 0:00:14]} g6 {[%emt 0:00:03]} 63. h4 $2 {[%emt 0:00:12][%mdl 8192]} (63. Kg3 $17) 63... Rc3 {[%emt 0:00:11] Black mates.} 64. Rf8 {[%emt 0:00:15]} Rh3 {[%emt 0:00:06]} 65. h5 {[%emt 0:00:02]} Rh4+ {[%emt 0:00:04]} ({Don't play} 65... Kxh5 66. Rh8#) 66. Ke5 {[%emt 0:00:04]} Kxh5 {[%emt 0:00:08]} ({Worse is} 66... gxh5 67. Kf6 Kh7 68. Rb8 $11) 67. Rg8 {[%emt 0:00:07]} Ra4 {[%emt 0:00:06]} 68. Kf6 {[%emt 0:00:04]} Ra6+ {[%emt 0:00:02]} 69. Ke5 {[%emt 0:00:01]} Kg4 {[%emt 0:00:03]} 70. Rf8 {[%emt 0:00:03]} Ra5+ {[%emt 0:00:08]} 71. Kf6 {[%emt 0:00:04]} f4 {[%emt 0:00:07][%cal Bf5f4,Bf4f3][%mdl 32]} 72. Kxg6 {[%emt 0:00:01]} f3 {[%emt 0:00:00] Weighted Error Value: White=0.19 (very precise) /Black=0.16 (very precise)} 0-1

[Event "American Cup Women Champions 2023"]
[Site "Saint Louis"]
[Date "2023.03.25"]
[Round "4.2"]
[White "Krush, Irina"]
[Black "Lee, Alice"]
[Result "1/2-1/2"]
[ECO "A44"]
[WhiteElo "2432"]
[BlackElo "2362"]
[Annotator "TA"]
[PlyCount "137"]
[EventDate "2023.03.15"]
[EventCountry "USA"]
[SourceTitle "playchess.com"]
[Source "ChessBase"]
[SourceQuality "1"]
[TimeControl "600+5"]

{[%evp 11,137,87,95,70,86,55,56,51,60,64,76,70,94,31,53,20,41,16,16,17,32,27,20,26,83,72,103,103,199,68,81,81,67,70,76,64,94,87,94,94,101,94,94,94,270,250,288,94,117,77,79,0,104,104,102,109,54,0,100,102,510,0,0,0,0,0,35,0,0,0,0,-43,-43,-47,-48,-48,-48,-48,-50,-55,0,0,0,0,0,0,0,0,0,0,0,0,0,0,0,0,195,177,388,394,321,0,258,0,0,0,158,0,0,0,2534,2396,2052,0,29967,29968,29970,29972,29971,2221,29969,0,29968,0,29963,0,1937,0]} 1. d4 {[%emt 0:00:01]} g6 {[%emt 0:00:01]} 2. c4 {[%emt 0:00:03]} Bg7 {[%emt 0:00:02]} 3. e4 {[%emt 0:00:03]} c5 {[%emt 0:00:01]} 4. d5 {[%emt 0:00:04]} d6 {[%emt 0:00:07]} 5. Nc3 {[%emt 0:00:02]} e5 {[%emt 0:00:05]} 6. Bd3 {[%emt 0:00:27]} Ne7 {[%emt 0:00:25]} 7. h3 {[%emt 0:00:51] A44: Semi-Benoni.} O-O {[%emt 0:00:15]} 8. g4 {[%emt 0:00:17]} f5 {[%emt 0:00:36]} 9. gxf5 {[%emt 0:00:10] White is slightly better.} gxf5 {[%emt 0:00:01]} 10. Nf3 {[%emt 0:00:30]} f4 {[%emt 0:00:36]} 11. Bd2 {[%emt 0:00:39]} Ng6 {[%emt 0:00:17] [#]} 12. Qe2 $146 {[%emt 0:00:31]} ({White should play} 12. h4 $16) ({Predecessor:} 12. a3 a6 13. b4 b6 14. Rb1 Bf6 15. bxc5 bxc5 16. Bc2 Rf7 17. Ba4 Nd7 18. Ke2 {1-0 Novikov,I (2580)-Georg,M (2345) Cairo-A 1997 (5)}) 12... Nh4 {[%emt 0:00:27]} 13. O-O-O {[%emt 0:00:16]} Nd7 {[%emt 0:00:34]} 14. Rdg1 {[%emt 0:00:04] next Ng5 is good for White.} Nxf3 {[%emt 0:00:07]} 15. Qxf3 {[%emt 0:00:02]} Rf7 {[%emt 0:00:09]} 16. Be2 {[%emt 0:00:56]} a6 {[%emt 0:00:20]} 17. Qg2 {[%emt 0:00:10]} Nf8 {[%emt 0:00:29]} (17... Nf6 $11) 18. Bh5 $16 {[%emt 0:00:41]} Re7 {[%emt 0:00:03][%cal Ob7b5] Black is weak on the light squares} 19. Qg5 {[%emt 0:00:05] Threatens to win with Na4.} Bd7 {[%emt 0:00:37] Prevents Na4} (19... Kh8 $16) 20. f3 {[%emt 0:00:06]} ({White should try} 20. Qf6 $18) 20... Be8 {[%emt 0:00:10]} 21. Be1 {[%emt 0:00:23] White is much more active.} Bxh5 {[%emt 0:00:21]} 22. Qxh5 {[%emt 0:00:01]} Qe8 {[%emt 0:00:06]} 23. Qg4 {[%emt 0:00:58]} Rc7 {[%emt 0:01:07]} 24. Rg2 {[%emt 0:00:44]} b5 {[%emt 0:00:23]} (24... Ng6 $2 25. h4 Nf8 26. Rhg1 $18) 25. Rhg1 {[%emt 0:00:06][%cal Rg4g7] White threatens Qxg7+ and mate.} Kh8 {[%emt 0:00:16]} (25... Ng6 $2 26. h4 $18) 26. h4 {[%emt 0:00:18]} b4 {[%emt 0:00:18]} 27. Nd1 {[%emt 0:00:09]} Qa4 $2 {[%emt 0:00:03]} (27... Rf7 $16 {was called for.}) 28. b3 {[%emt 0:00:29]} Qd7 {[%emt 0:00:11]} 29. Qh5 {[%emt 0:00:42]} (29. Qf5 $1 $18 {and the rest is easy.} Qd8 30. h5) 29... Qe8 {[%emt 0:00:10]} 30. Qf5 {[%emt 0:00:20][%cal Of5f6]} Rf7 {[%emt 0:00:23] Inhibits Qf6.} 31. Qh5 {[%emt 0:00:25]} (31. Qh3 $16) 31... Re7 {[%emt 0:01:07]} (31... Rc7 $11 {keeps the balance.} 32. Qh6 Ng6) 32. Qxe8 {[%emt 0:00:23]} Raxe8 {[%emt 0:00:02]} 33. h5 {[%emt 0:00:01][%cal Oh5h6]} Nd7 {[%emt 0:00:18]} (33... h6 $16) 34. Bh4 {[%emt 0:00:02]} ({Better is} 34. Kc2 $14) 34... Rf7 {[%emt 0:00:01]} (34... Bf6 $11 {remains equal.} 35. Bg5 Rg8) 35. Nf2 {[%emt 0:00:09]} Bf6 $2 {[%emt 0:00:08][%mdl 8192]} (35... Rb8 $16 {is more resistant.}) 36. Bxf6+ $2 {[%emt 0:00:16]} (36. Ng4 $1 $18 {[%cal Rg4h6] Threatening mate with Nh6.} Bg7 37. h6) 36... Nxf6 $11 {[%emt 0:00:02]} 37. Rg5 {[%emt 0:00:41]} Rg8 {[%emt 0:00:18]} 38. h6 {[%emt 0:00:03]} Rff8 {[%emt 0:00:31]} 39. Kd2 {[%emt 0:00:14]} Rxg5 {[%emt 0:00:05]} 40. Rxg5 {[%emt 0:00:02]} Rg8 {[%emt 0:00:01] Inhibits Rg7.} 41. Rxg8+ {[%emt 0:00:51]} Kxg8 {[%emt 0:00:02][%mdl 4096] Endgame KN-KN} 42. Nh3 $1 {[%emt 0:00:11]} Kf7 {[%emt 0:00:05]} 43. Ng5+ $1 {[%emt 0:00:01]} Kg6 {[%emt 0:00:02]} 44. Ne6 {[%emt 0:00:04]} Kxh6 {[%emt 0:00:08]} 45. Nc7 {[%emt 0:00:01]} a5 {[%emt 0:00:05]} (45... Kg6 $15) 46. Nb5 {[%emt 0:00:12]} Ne8 {[%emt 0:00:01] ...Kg5 would be deadly.} 47. Na7 {[%emt 0:00:02]} Kg5 {[%emt 0:00:08] White must now prevent ...Kh4.} 48. Ke2 $1 {[%emt 0:00:01]} Kh4 {[%emt 0:00:18]} 49. Kf2 {[%emt 0:00:01]} h5 {[%emt 0:00:01]} 50. Kg2 {[%emt 0:00:01]} Kg5 {[%emt 0:00:17]} 51. Nc6 {[%emt 0:00:09]} Kf6 {[%emt 0:01:34]} 52. Nxa5 {[%emt 0:00:08]} Ke7 {[%emt 0:00:02]} 53. Nc6+ {[%emt 0:00:11]} Kd7 $2 {[%emt 0:00:20]} (53... Kf6 $11) 54. Kh3 $18 {[%emt 0:00:01]} Ng7 $2 {[%emt 0:00:10]} (54... Nf6 {is a better defense.}) 55. Kh4 {[%emt 0:00:03]} Ke8 {[%emt 0:00:01]} 56. Kg5 $2 {[%emt 0:00:08]} (56. Na7 $1 $18 {Nb5 is the strong threat.} Ke7 57. Kg5) 56... Kd7 $2 {[%emt 0:00:03][%mdl 8192]} (56... Kf7 $1 $11) 57. Nb8+ {[%emt 0:00:06]} Kc7 {[%emt 0:00:05]} (57... Kc8 $5 58. Nc6 $8 Kd7 $16) 58. Nc6 {[%emt 0:00:03] aiming for Ne7.} Kd7 {[%emt 0:00:11] [#] Prevents Ne7} 59. Nb8+ $2 {[%emt 0:00:01]} (59. Na7 $1 $16) 59... Kc8 $11 {[%emt 0:00:03]} 60. Nc6 {[%emt 0:00:01]} Kc7 $2 {[%emt 0:00:01][%mdl 8192] [#]} (60... Kd7 $11) 61. Ne7 $1 $18 {[%emt 0:00:02]} Kd7 {[%emt 0:00:08]} 62. Nf5 $2 {[%emt 0:00:09]} ({Only move:} 62. Ng6 $18 {Hoping for Kh6.} Ne8 63. Nh4 (63. Kxh5 Nf6+ 64. Kh4 Ke8 $14)) 62... Ne8 $2 {[%emt 0:00:05][%mdl 8192]} (62... Nxf5 $11 63. Kxf5 (63. exf5 $2 {too greedy.} Ke7 $19) 63... Ke7) 63. Kxh5 {[%emt 0:00:03]} Nc7 {[%emt 0:00:06]} 64. Kg5 {[%emt 0:00:05]} Ne8 {[%emt 0:00:01]} 65. Nh6 {[%emt 0:00:12]} (65. Kg6 $142 Nc7 66. Kf7 Na8 67. Ng7 Kd8 68. Ke6 Nb6 69. Kxd6 Nc8+ 70. Kxe5) 65... Nc7 {[%emt 0:00:02]} 66. Nf5 {[%emt 0:00:01]} Ne8 {[%emt 0:00:02]} 67. Nh6 {[%emt 0:00:01]} Nc7 {[%emt 0:00:00]} 68. Nf5 {[%emt 0:00:00]} (68. Kf6 $142 Na6 69. Nf7 Nb8 70. Nxe5+ dxe5 71. Kxe5 Ke8 72. Kxf4 Nd7 73. e5) 68... Ne8 {[%emt 0:00:02]} 69. Nh6 $2 {[%emt 0:00:08] Weighted Error Value: White=0.46/Black=0.49} (69. Kg6 $18 Nc7 70. Kf6) 1/2-1/2